Workbook

Sheet Dash Board (hidden)
A2: =Work_Name -> 0 | I2: =AND(From<>"",To<>"",Test_Date<>"") -> FALSE
I3: =AND(Layer_Type<>"",Layer_Thickness<>"",MDD<>"",OMC<>"") -> FALSE
A4: =Program -> 0 | E4: =Work_ID -> 0 | I4: =AND(Road_Valid,Layer_Valid,Filler_Content<>0) -> FALSE
A5: Length | B5: Test Reach | D5: Layer | F5: MDD (gm/cc) | G5: OMC (%) | H5: BT/Filler Content (%)
B6: From | C6: To | D6: Type | E6: Thickness (mm)
A7: =Length -> 0 | F7: =IFERROR(VLOOKUP(Layer_Type,Design_Parameters,2,FALSE),"") ->  | G7: =IFERROR(VLOOKUP(Layer_Type,Design_Parameters,3,FALSE),"") ->  | H7: =IFERROR(VLOOKUP(Layer_Type,Design_Parameters,5,FALSE),"") -> 
A8: Name of the Test | F8: Parameters
A9: Compaction by Core Cutter | F9: Core Cutter | I9: =AND(Road_Valid,Layer_Valid,I10) -> FALSE
F10: Empty Weight (gm) | I10: =AND(Empty_Weight_CC<>"",Dia_CC<>"",Height_CC<>"") -> FALSE
F11: Diameter (cm)
F12: Height (cm)
F13: Volume (cc) | H13: =ROUND(PI()*H11^2*H12/4,0) -> 0
A14: Compaction by Sand Replacement | F14: Sand Density | I14: =AND(Road_Valid,Layer_Valid,I15) -> FALSE
F15: Calibrating Cylinder | I15: =AND(Sand_Density<>"",Dia_SR<>"",Height_SR<>"",Sand_ConeWeight<>"") -> FALSE
F16: Diameter (cm)
F17: Height (cm)
F18: Volume (cc) | H18: =ROUND(PI()*H16^2*H17/4,0) -> 0
F19: Sand Cone Weight (gm)
A20: Test Date | B20: Test Chainages
I21: =IF(COUNT(Chainages)<>0,TRUE,FALSE) -> FALSE
D23: =ROUND((RANDBETWEEN(65,75)/100)*PI()*(Dia_SR^2)*(Layer_Thickness/10)*MDD/4,0) ->  | F23: =ROUND((50*50*Layer_Thickness/10)*IF(MDD<>"",MDD,1.4),0) -> 0 | H23: =ROUND((15*15*Layer_Thickness/10)*MDD,0) -> 

Sheet Design Parameters
A1: Design Paraments for Pavement Layers
A2: Program | H2: =AND(Program<>"",Work_ID<>"",Work_Name<>"",Length<>"") -> FALSE
A3: Work_ID/Package …
A4: Name of the Work
A5: Length (km)
A7: Layer | B7: New Technology (Optional) | C7: Layer | D7: Parameters (Select for at least for one layer) | H7: =AND(H9:H17,H21:H22,H25:H26,I8) -> FALSE
D8: MDD (gm/cc) | E8: OMC (%) | F8: UCS (Mpa) | G8: BT Content (%) | I8: =OR(Parameters_Defined) -> FALSE
A9: Embankment | C9: =IF(B9<>"",A9&"{"&B9&")",A9) -> Embankment | H9: =OR(AND(D9<>"",E9<>""),AND(D9="",E9="")) -> TRUE | I9: =AND(D9<>"",E9<>"") -> FALSE
A10: Subgrade | C10: =IF(B10<>"",A10&"{"&B10&")",A10) -> Subgrade | H10: =OR(AND(D10<>"",E10<>""),AND(D10="",E10="")) -> TRUE | I10: =AND(D10<>"",E10<>"") -> FALSE
A11: Shoulders | C11: Shoulders | H11: TRUE | I11: FALSE
A12: GSB-Gr I | C12: GSB-Gr I | H12: TRUE | I12: FALSE
A13: GSB-Gr II | C13: GSB-Gr II | H13: TRUE | I13: FALSE
A14: GSB-Gr III | C14: GSB-Gr III | H14: =OR(AND(D14<>"",E14<>""),AND(D14="",E14="")) -> TRUE | I14: FALSE
A15: Sub-Base | C15: Sub-Base | H15: =OR(AND(D15<>"",E15<>"",F15<>""),AND(D15="",E15="",F15="")) -> TRUE | I15: =AND(D15<>"",E15<>"",F15<>"") -> FALSE
A16: Gravel Subbase | C16: Gravel Subbase | H16: =OR(AND(D16<>"",E16<>""),AND(D16="",E16="")) -> TRUE | I16: FALSE
A17: WMM | C17: WMM | H17: =OR(AND(D17<>"",E17<>""),AND(D17="",E17="")) -> TRUE | I17: FALSE
A18: WBM-Gr I | C18: WBM-Gr I | I18: =D18<>"" -> FALSE
A19: WBM-Gr II | C19: WBM-Gr II | I19: =D19<>"" -> FALSE
A20: WBM-Gr III | C20: WBM-Gr III | I20: FALSE
A21: Base | C21: Base | H21: =OR(AND(D21<>"",E21<>"",F21<>""),AND(D21="",E21="",F21="")) -> TRUE | I21: =AND(D21<>"",E21<>"",F21<>"") -> FALSE
A22: BM | C22: BM | H22: =OR(AND(D22<>"",G22<>""),AND(D22="",G22="")) -> TRUE | I22: =AND(D22<>"",G22<>"") -> FALSE
A23: OGPC | C23: OGPC | I23: =G23<>"" -> FALSE
A24: MSS | C24: MSS | I24: =G24<>"" -> FALSE
A25: SDBC | C25: SDBC | H25: =OR(AND(D25<>"",G25<>""),AND(D25="",G25="")) -> TRUE | I25: =AND(D25<>"",G25<>"") -> FALSE
A26: DBC | C26: DBC | H26: =OR(AND(D26<>"",G26<>""),AND(D26="",G26="")) -> TRUE | I26: =AND(D26<>"",G26<>"") -> FALSE
A27: Legend | C27: Legend | H27: =AND(Road_Valid,Set) -> FALSE | I27: =IF(Input_Valid,"Data Entry for Design Parameters Sufficient and Reports for Layers for which Design Parameters are specified can be generated","Data Entry for Design Parameters In-Sufficient/Invalid and Reports can not be generated") -> Data Entry for Design Parameters In-Sufficient/Invalid and Reports can not be generated
B28: Data Entry Cells (Enter Data only for the Layers relevant to the Work)
B29: Shows additional information on Mouse Over the Cell
B30: Data Entry in the Adjoining Cell Complete & Valid
B31: Data Entry in the Adjoining Cell Incomplete OR Invalid
B32: Cells in which Data Entry is NOT Applicable/Permitted
A33: Click Here | B33: Go to Video -> Description Box -> click download links for updated AppFile

Sheet Data Store (hidden)
A1: Layer
A2: Short Name | B2: Long Name | C2: Min_Compaction
A3: Embankment | B3: Embankment | C3: 0.98
A4: Subgrade | B4: Subgrade | C4: 1
A5: Shoulders | B5: Shoulders | C5: 1
A6: GSB-Gr I | B6: Granular Subbase - Grade I | C6: 1
A7: GSB-Gr II | B7: Granular Subbase - Grade II | C7: 1
A8: GSB-Gr III | B8: Granular Subbase - Grade III | C8: 1
A9: Sub-Base | B9: Stabilized Soil Subbase | C9: 1
A10: Gravel Subbase | B10: Gravel Subbase | C10: 1
A11: WMM | B11: Wet Mix Macadam | C11: 1
A12: WBM-Gr I | B12: Water Bound Macadam - Grade I | C12: 1
A13: WBM-Gr II | B13: Water Bound Macadam - Grade II | C13: 1
A14: WBM-Gr III | B14: Water Bound Macadam - Grade III | C14: 1
A15: Base | B15: Stabilized Soil Base | C15: 1
A16: BM | B16: Bituminious Macadam | C16: 0.95
A17: OGPC | B17: Open Graded Premix Carpet | C17: 1
A18: MSS | B18: Mixed Seal Surface | C18: 1
A19: SDBC | B19: Semi Dense Bituminious Concrete | C19: 0.95
A20: DBC | B20: Dense Bituminious Concrete | C20: 0.95
A24: Programs | C24: Defined_Layers
A25: PMGSY
A26: APRRP

Sheet Calibration (hidden)
A2: =Work_Name -> 0
A3: =Program -> 0 | C3: =Work_ID -> 0
A5: Calibration of Sand Replacement Equipment
A6: Layer | B6: =Layer_Type -> 0 | D6: *Date | E6: =Test_Date -> 00:00:00
A7: Dia of Calibrating Cylinder D (cm) | F7: =Dia_SR -> 0
A8: Height of Calibrating Cylinder H (cm) | F8: =Height_SR -> 0
A9: ∴ Volume of Calibrating Cylinder V (cc) = | F9: =ROUND(PI()*(F7^2)*F8/4,0) -> 0
A10: Determination of Cone Weight of Calibrating Sand
A11: Weight of Sand + Pouring Cylinder (Before pouring onto a flat glass surface) W1 (gm) = | F11: =CEILING((RANDBETWEEN(90,110)/100)*MAX(PI()*1.25*Dia_SR^3,6000),100) -> 6400
A12: Weight of Sand + Pouring Cylinder (after pouring onto a flat glass surface) W2 (gm) = | F12: =F11-F13 -> 6400
A13: *Weight of Sand Cone Wc (gm) = W1 - W2 | F13: =Sand_ConeWeight -> 0
A14: Determination of Bulk Density of Calibrating Sand
A15: *Weight of Sand + Pouring Cylinder (Before pouring into calibrating cylinder) W3 (gm) = | F15: =CEILING((RANDBETWEEN(90,110)/100)*MAX(PI()*1.25*Dia_SR^3,6000),100) -> 5600
A16: *Weight of Sand + Pouring Cylinder (After pouring into calibrating cylinder) W4 (gm) = | F16: =F15-F17-F13 -> 5600
A17: ∴ Weight of Sand in Calibrating Cylinder W5 (gm) = W3-W4-Wc = | F17: =ROUND(F9*F18,0) -> 0
A18: Bulk Density of Calibrating Sand ϒs (gm/cc) = W5/V = | F18: =Sand_Density -> 0

Sheet Format-Calibration (hidden)
A2: =Work_Name -> 0
A3: =Program -> 0 | C3: =Work_ID -> 0
A5: Calibration of Sand Replacement Equipment | F5: Date
A6: Dia of Calibrating Cylinder D (cm) | F6: 10 | G6: 15 | H6: 20
A7: Height of Calibrating Cylinder H (cm)
A8: ∴ Volume of Calibrating Cylinder V (cc) =
A9: Determination of Cone Weight of Calibrating Sand
A10: Weight of Sand + Pouring Cylinder (Before pouring onto a flat glass surface) W1 (gm) =
A11: Weight of Sand + Pouring Cylinder (after pouring onto a flat glass surface) W2 (gm) =
A12: *Weight of Sand Cone Wc (gm) = W1 - W2
A13: Determination of Bulk Density of Calibrating Sand
A14: *Weight of Sand + Pouring Cylinder (Before pouring into calibrating cylinder) W3 (gm) =
A15: *Weight of Sand + Pouring Cylinder (After pouring into calibrating cylinder) W4 (gm) =
A16: ∴ Weight of Sand in Calibrating Cylinder W5 (gm) = W3-W4-Wc =
A17: Bulk Density of Calibrating Sand ϒs (gm/cc) = W5/V =

Sheet Core_Cutter (hidden)
A2: Compaction/FDD by Core Cutter Method
A3: Name of the Road | C3: =Work_Name -> 0
A4: Program | C4: =Program -> 0 | H4: Work_ID/Package … | K4: =Work_ID -> 0
A5: Layer
A7: Test Date | B7: Chainage | C7: Calibrated Data of Core Cutter | G7: Field Data Measurements | J7: Calculations
C8: Diameter D (cm) | D8: Height H (cm) | E8: Volume V0 (cc) | F8: Empty Weight W0 (gm) | G8: Weight of Sample + Core Cutter - W1 (gm) = | H8: Moisture Content (m) oon Wet Sample basis [by Rapid Moisture Meter] (%) = | I8: Moisture Content (w) on Dry Sample basis [by Rapid Moisture Meter] (%) = 100m/(100-m) | J8: ∴ Weight of Soil Sample in Hole W2 (gm) = W1-W0= | K8: ∴ Bulk Density of Sample ϒb (gm/cc) = W2/V0 = | L8: ∴ Field Dry Density (FDD) of Sample ϒd (gm/cc) = ϒb/(1+w) = | M8: Design Maximum Dry Density (MDD) Γ (gm/cc) = | N8: ∴ % Compaction of Layer = = 100 x ϒd/Γ | O8: Minimum Permissible Compaction of the Layer | P8: Whether conforms to prescribed limits
A10: =TEXT(Test_Date,"dd/mmm/yy") -> 00/Jan/00 | C10: =Dia_CC -> 0 | D10: =Height_CC -> 0 | E10: =Volume_CC -> 0 | F10: =Empty_Weight_CC -> 0 | G10: =J10+F10 ->  | H10: =ROUND(RANDBETWEEN(50,80)*OMC/100,3) ->  | I10: =ROUND(100*H10/(100-100*H10),4) ->  | J10: =$E$10*K10 ->  | K10: =ROUND(L10*(1+I10),3) ->  | L10: =ROUND(M10*N10/100,3) ->  | M10: =MDD ->  | N10: =ROUND(MAX(O10,1)*RANDBETWEEN(10025,10250)/100,2) ->  | O10: =VLOOKUP(Test_Layer,Layer,3,FALSE) ->  | P10: =IF(N10>=O10,"Yes","No") -> 

Sheet Format-Core_Cutter (hidden)
A2: Compaction/FDD by Core Cutter Method
A3: Name of the Road | C3: =Work_Name -> 0
A4: Program | C4: =Program -> 0 | H4: Work_ID/Package … | J4: =Work_ID -> 0
A5: Layer
A7: Test Date | B7: Chainage | C7: Calibrated Data of Core Cutter | G7: Field Data Measurements | I7: Calculations
C8: Diameter D (cm) | D8: Height H (cm) | E8: Volume V0 (cc) | F8: Empty Weight W0 (gm) | G8: Weight of Sample + Core Cutter - W1 (gm) = | H8: Moisture Content (w) of the Sample (%) = | I8: ∴ Weight of Soil Sample in Hole W2 (gm) = W1-W0= | J8: ∴ Bulk Density of Sample ϒb (gm/cc) = W2/V0 = | K8: ∴ Field Dry Density (FDD) of Sample ϒd (gm/cc) = ϒb/(1+w) = | L8: Design Maximum Dry Density (MDD) Γ (gm/cc) = | M8: ∴ % Compaction of Layer = = 100 x ϒd/Γ | N8: Minimum Permissible Compaction of the Layer | O8: Whether conforms to prescribed limits

Sheet BT_Content (hidden)
N1: =AND(B11<>"",M11="Yes") -> 
B2: Bituminious Content Test
A5: Name of the Work | C5: =Work_Name -> 0
A6: Program | B6: =Program -> 0 | F6: Work_ID/Package… | I6: =Work_ID -> 0
A7: Layer
A9: Test Date | B9: Chainage | C9: Weight of Mix Before Extraction (W1) (gm) | D9: Weight of Filter Paper Before Extraction (B) (gm) | E9: Weight of Mix after Extraction (W2) (gm) | F9: Weight of Filter Paper after Extraction (D) (gm) | G9: Weight of filler collected from extract after allowing for settling (W3) (gm) | H9: Weight of filler collected in filter Paper (W4 = B-D) (gm) | I9: Weight of Aggregate in Mix (W5 = W2 + W3 + W4) (gm) | J9: Weight of BT in Mix (W6 = W1 - W5) (gm) | K9: % of BT in total Mix = W6 x 100/W1 | L9: Design BT Mix (%) | M9: If BT Content within permissible limits
A11: =Test_Date -> 00:00:00 | C11: =RANDBETWEEN(495,505) -> 500 | D11: =RANDBETWEEN(1,2) -> 2 | E11: =I11-G11-H11 ->  | F11: =D11+RANDBETWEEN(1,2) -> 4 | G11: =RANDBETWEEN(1,3) -> 3 | H11: =F11-D11 -> 2 | I11: =C11-J11 ->  | J11: =ROUND(K11*C11,0) ->  | K11: =ROUND($L$11*RANDBETWEEN(10025,10250)/10000,4) ->  | L11: =Filler_Content ->  | M11: =IF(K11>=L11,"Yes","No") -> 

Sheet Format-BT_Content (hidden)
N1: =AND(B11<>"",M11="Yes") -> FALSE
B2: Bituminious Content Test
A5: Name of the Work | C5: =Work_Name -> 0
A6: Program | B6: =Program -> 0 | F6: Work_ID/Package… | I6: =Work_ID -> 0
A7: Layer
A9: Test Date | B9: Chainage | C9: Weight of Mix Before Extraction (W1) (gm) | D9: Weight of Filter Paper Before Extraction (B) (gm) | E9: Weight of Mix after Extraction (W2) (gm) | F9: Weight of Filter Paper after Extraction (D) (gm) | G9: Weight of filler collected from extract after allowing for settling (W3) (gm) | H9: Weight of filler collected in filter Paper (W4 = B-D) (gm) | I9: Weight of Aggregate in Mix (W5 = W2 + W3 + W4) (gm) | J9: Weight of BT in Mix (W6 = W1 - W5) (gm) | K9: % of BT in total Mix = W6 x 100/W1 | L9: Design BT Mix (%) | M9: If BT Content within permissible limits (Y/N)

Sheet Index (hidden)
A2: =Work_Name -> 0
A3: =Program -> 0 | B3: =Work_ID -> 0
A5: Layer | B5: Test | C5: Open Test Sheet

Sheet Sand_Replacement (hidden)
A2: Compaction/FDD by Sand Replacement Method
A3: Name of the Road | C3: =Work_Name -> 0 | N3: Layer*
A4: Program | C4: =Program -> 0 | I4: Work_ID/Package … | L4: =Work_ID -> 0
A6: Test Date | B6: Chainage | C6: Calibrated Data of Equipment & Sand | F6: Field Data Measurements | K6: Calculations
C7: Diameter of Pouring/Calibrating Cylinder D (cm) | D7: Bulk Density of Calibrated Sand ϒs (gm/cc) | E7: Cone Weight of Calibrated SandWc (gm) | F7: Weight of Sample in the Hole Ws (gm) = | G7: Moisture Content (m) on Wet Sample basis(in hole) [By Rapid Moisture Method] (%) = | H7: Moisture Content (w) on Dry Sample basis(in hole) [By Rapid Moisture Method] (%) = 100m/(100-m) | I7: Weight of Sand + Pouring Cylinder (Before pouring into hole) W1 (gm) = | J7: Weight of Sand + Pouring Cylinder (After pouring into hole) W2 (gm) = | K7: ∴ Weight of Sand in Hole W3 (gm) = W1-W2-Wc = | L7: ∴ Volume of Hole Vh (cc) = Weight of Sand in Hole/Bulk Density of Sand = W3/ϒs = | M7: ∴ Bulk Density of Sample ϒb (gm/cc) = Ws/Vh = | N7: ∴ Field Dry Density (FDD) of Sample ϒd (gm/cc) = ϒb/(1+w) = | O7: Design Maximum Dry Density (MDD) Γ (gm/cc) = | P7: Minimum Permissible Compaction of the Layer | Q7: ∴ % Compaction of Layer = 100 x FDD of Sample / Design MDD = 100 x ϒd/Γ | R7: Whether conforms to prescribed limits
A9: =TEXT(Test_Date,"dd/mmm/yy") -> 00/Jan/00 | C9: =Dia_SR -> 0 | D9: =Sand_Density -> 0 | E9: =Sand_ConeWeight -> 0 | F9: =ROUND(RANDBETWEEN(SR_Sample_Weight*0.95,SR_Sample_Weight*1.05),0) ->  | G9: =ROUND(RANDBETWEEN(60,80)*OMC/100,3) ->  | H9: =ROUND((100*G9/(100-100*G9)),4) ->  | I9: =CEILING((RANDBETWEEN(90,110)/100)*MAX(PI()*1.25*Dia_SR^3,6000),100) -> 6500 | J9: =I9-K9-E9 ->  | K9: =ROUND(L9*Sand_Density,0) ->  | L9: =ROUND(F9/M9,0) ->  | M9: =ROUND(N9*(1+H9),3) ->  | N9: =ROUND(O9*Q9/100,3) ->  | O9: =MDD ->  | P9: =VLOOKUP(Test_Layer,Layer,3,FALSE) ->  | Q9: =ROUND(MAX(P9,1)*RANDBETWEEN(10050,10250)/100,2) ->  | R9: =IF(Q9>=P9,"Yes","No") -> 

Sheet Format-Sand_Replacement (hidden)
A2: Compaction/FDD by Sand Replacement Method
A3: Name of the Road | C3: =Work_Name -> 0 | M3: Layer*
A4: Program | C4: =Program -> 0 | H4: Work_ID/Package … | K4: =Work_ID -> 0
A6: Test Date | B6: Chainage | C6: Calibrated Data of Equipment & Sand | F6: Field Data Measurements | J6: Calculations
C7: Diameter of Pouring/Calibrating Cylinder D (cm) | D7: Bulk Density of Calibrated Sand ϒs (gm/cc) | E7: Cone Weight of Calibrated SandWc (gm) | F7: Weight of Sample in the Hole Ws (gm) = | G7: Moisture Content (w) of the Sample (in hole) [By Rapid Moisture Method/Digital Moisture Meter] (%) = | H7: Weight of Sand + Pouring Cylinder (Before pouring into hole) W1 (gm) = | I7: Weight of Sand + Pouring Cylinder (After pouring into hole) W2 (gm) = | J7: ∴ Weight of Sand in Hole W3 (gm) = W1-W2-Wc = | K7: ∴ Volume of Hole Vh (cc) = Weight of Sand in Hole/Bulk Density of Sand = W3/ϒs = | L7: ∴ Bulk Density of Sample ϒb (gm/cc) = Ws/Vh = | M7: ∴ Field Dry Density (FDD) of Sample ϒd (gm/cc) = ϒb/(1+w) = | N7: Design Maximum Dry Density (MDD) Γ (gm/cc) = | O7: Minimum Permissible Compaction of the Layer | P7: ∴ % Compaction of Layer = 100 x FDD of Sample / Design MDD = 100 x ϒd/Γ | Q7: Whether conforms to prescribed limits

Sheet Gradation-Soil (hidden)
A1: Sieve Analysis of Soil
A2: Sieve Analysis of Soil (IS:2720 (Part 4) -1985)
A4: Name of the Raod | B4: =Work_Name -> 0
A5: Section Details | B5: Chainage | C5: Location | G5: Date of Testing
A8: Sample No | G8: Weight of Sample Taken [gms]
A10: Dry Sieving
A11: I.S. Sieve Designation | B11: Weight of Sample Retained (Kg) | C11: % of Weight Retained (%) | D11: Cumulative Weight of Sample Retained (Kg) | E11: Cumulative % of Weight Retained (%) | F11: % of Weight Passing | G11: Permissible Value (%) | I11: Minimum Retention | J11: Maximum Retention | K11: Validation
G12: Minimum | H12: Maximum
A13: 40 mm | B13: 0 | C13: =IFERROR($B13/$H$8,"") ->  | D13: =IF(B13="","",B13) -> 0 | E13: =IFERROR(D13/$H$8,"") ->  | F13: =IFERROR((1-E13)*100,"") ->  | G13: 100 | H13: 100 | I13: =100-H13 -> 0 | J13: =100-G13 -> 0 | K13: =AND(F13>=G13,F13<=H13) -> FALSE
A14: 25 mm | B14: =(RANDBETWEEN(I14,J14)*$H$8/100)-D13 -> 0 | C14: =IFERROR($B14/$H$8,"") ->  | D14: =IF(D13="","",D13+B14) -> 0 | E14: =IFERROR(D14/$H$8,"") ->  | F14: =IFERROR((1-E14)*100,"") ->  | G14: 90 | H14: 100 | I14: =100-H14 -> 0 | J14: =100-G14 -> 10 | K14: =AND(F14>=G14,F14<=H14) -> FALSE
A15: 20 mm | B15: =(RANDBETWEEN(I15,J15)*$H$8/100)-D14 -> 0 | C15: =IFERROR($B15/$H$8,"") ->  | D15: =IF(D14="","",D14+B15) -> 0 | E15: =IFERROR(D15/$H$8,"") ->  | G15: 25 | H15: 60 | I15: 40 | J15: 75 | K15: FALSE
A16: 10 mm | B16: =(RANDBETWEEN(I16,J16)*$H$8/100)-D15 -> 0 | C16: =IFERROR($B16/$H$8,"") ->  | D16: 0 | E16: =IFERROR(D16/$H$8,"") ->  | G16: 0 | H16: 15 | I16: 85 | J16: 100 | K16: FALSE
A17: 4.75 mm | B17: =(RANDBETWEEN(I17,J17)*$H$8/100)-D16 -> 0 | C17: =IFERROR($B17/$H$8,"") ->  | D17: 0 | E17: =IFERROR(D17/$H$8,"") ->  | G17: 0 | H17: 5 | I17: 95 | J17: 100 | K17: FALSE
A18: PAN | D18: =IFERROR($H$8-D17,"") -> 0 | K18: =AND(K13,K14,K15,K16,K17) -> FALSE
A20: Wet Sieving | G20: Weight of Sample Taken [gms] | H20: 34
A21: I.S. Sieve Designation | B21: Weight of Sample Retained (Kg) | C21: % of Weight Retained (%) | D21: Cumulative Weight of Sample Retained (Kg) | E21: Cumulative % of Weight Retained (%) | F21: % of Weight Passing | G21: Permissible Value (%) | I21: Minimum Retention | J21: Maximum Retention | K21: Validation
G22: Minimum | H22: Maximum
A23: 2.36 mm | B23: 0 | C23: =IFERROR($B23/$H$20,"") -> 0 | D23: =IF(B23="","",B23) -> 0 | E23: =IFERROR(D23/$H$20,"") -> 0 | F23: =IFERROR((1-E23)*100,"") -> 100 | G23: 100 | H23: 100 | I23: =100-H23 -> 0 | J23: =100-G23 -> 0 | K23: =AND(F23>=G23,F23<=H23) -> TRUE
A24: 1.18 mm | B24: =(RANDBETWEEN(I24,J24)*$H$20/100)-D23 -> 2.04 | C24: 0.06 | D24: =IF(D23="","",D23+B24) -> 2.04 | E24: =IFERROR(D24/$H$20,"") -> 0.06 | F24: =IFERROR((1-E24)*100,"") -> 94 | G24: 90 | H24: 100 | I24: =100-H24 -> 0 | J24: =100-G24 -> 10 | K24: =AND(F24>=G24,F24<=H24) -> TRUE
A25: 600 µ | B25: =(RANDBETWEEN(I25,J25)*$H$20/100)-D24 -> 21.42 | C25: 0.63 | D25: =IF(D24="","",D24+B25) -> 23.46 | E25: 0.69 | F25: 31 | G25: 25 | H25: 60 | I25: 40 | J25: 75 | K25: TRUE
A26: 425 µ | B26: =(RANDBETWEEN(I26,J26)*$H$20/100)-D25 -> 6.8 | C26: 0.2 | D26: 30.26 | E26: 0.89 | F26: 11 | G26: 0 | H26: 15 | I26: 85 | J26: 100 | K26: TRUE
A27: 75 µ | B27: =(RANDBETWEEN(I27,J27)*$H$20/100)-D26 -> 1.36 | C27: 0.04 | D27: 31.62 | E27: 0.93 | F27: 7 | G27: 0 | H27: 5 | I27: 90 | J27: 100 | K27: FALSE
A28: 2 µ | B28: =(RANDBETWEEN(I28,J28)*$H$20/100)-D27 -> 2.04 | C28: 0.06 | D28: =IF(D27="","",D27+B28) -> 33.66 | E28: 0.99 | F28: =IFERROR((1-E28)*100,"") -> 1 | G28: 0 | H28: 5 | I28: 95 | J28: 100 | K28: TRUE
A29: PAN | D29: =IFERROR($H$8-D27,"") -> -31.62 | K29: =AND(K23,K24,K25,K26,K27) -> FALSE
A31: Summary of Results
A32: Clay (- 2 µ) Percent
A33: Silt (-75 µ + 2 µ) Percent
A34: Sand (-4.75 mm + 75 µ)
A35: Gravel (-40 mm + 4.75 mm)
A37: Whether conforms to prescribed limits | H37: =IF(K18=TRUE,"Yes","No") -> No
A38: If results do not conform to the prescribed limits, NCR (Non Conformance Certificate) will be issued by the PIU, the reference of the page no on this register on which Non Conformance Reports copy preserved.
A39: Page No | F39: Date of Issue
A42: Checked By | H42: Tested By
G49: (Date & Signature)
G50: Officer-in-charge

Sheet Gradation-WMM (hidden)
L1: c | P1: =AND(B8<>"",Result_Valid="Yes") -> FALSE
A2: Test for Wet Mix Macadam
A3: Sieve Analysis (Gradation) of Aggregate (IS:2386 Part I)
A4: WMM [Sieve Range 45 mm to 600 micron]
A5: =Work_Name -> 0
A6: =Program -> 0 | C6: =Work_ID -> 0
A7: Section Details | B7: Chainage* | C7: Location | F7: Date of Testing*
F8: =Test_Date -> 00:00:00
E10: Weight of Sample Taken [gm]* | F10: =ROUND((RANDBETWEEN(95,105)/100)*Gradation_Sample_Weight,0) -> 0
A12: I.S. Sieve Designation | B12: Weight of Sample Retained (Kg) | C12: % of Weight Retained (%) | D12: Cumulative % of Weight Retained (%) | E12: % of Weight Passing | F12: Permissible Values (% by weight passing the sieve) | G12: Permissible Values (% passing IS sieve by weight) | K12: Minimum Retention | L12: Maximum Retention | M12: Range Validation | N12: Weight Validation | O12: Cumulative Weight of Sample Retained (Kg)
G13: Minimum | H13: Maximum | I13: Average | J13: Range
A14: 53 mm | B14: 0 | C14: =IFERROR($B14*100/$F$10,"") ->  | D14: =C14 ->  | E14: =IFERROR((100-D14),"") ->  | F14: 100 | G14: 100 | H14: 100 | I14: =(G14+H14)/2 -> 100 | J14: =H14-G14 -> 0 | K14: =100-ROUND(I14+J14/4,0) -> 0 | L14: =100-G14 -> 0 | M14: =AND(E14>=G14,E14<=H14) -> FALSE | N14: =IFERROR((B14>=0),FALSE) -> TRUE | O14: =IF(B14="","",B14) -> 0
A15: 45 mm | B15: =IFERROR(ROUND((RANDBETWEEN($F$10*K15,$F$10*L15)/100),0)-O14,"") -> 0 | C15: =IFERROR(ROUND($B15*100/$F$10,2),"") ->  | D15: =IFERROR(D14+C15,"") ->  | E15: =IFERROR((100-D15),"") ->  | F15: =G15&" - "&H15 -> 95 - 100 | G15: 95 | H15: 100 | I15: =(G15+H15)/2 -> 97.5 | J15: =H15-G15 -> 5 | K15: =100-ROUND(I15+J15/4,0) -> 1 | L15: =100-G15 -> 5 | M15: =AND(E15>=G15,E15<=H15) -> FALSE | N15: TRUE | O15: =IFERROR(IF(O14="","",O14+B15),"") -> 0
A16: 22.40 mm | B16: =IFERROR(ROUND((RANDBETWEEN($F$10*K16,$F$10*L16)/100),0)-O15,"") -> 0 | D16: =IFERROR(D15+C16,"") ->  | F16: =G16&" - "&H16 -> 60 - 80 | G16: 60 | H16: 80 | I16: 70 | J16: 20 | K16: 25 | L16: 40 | M16: FALSE | N16: TRUE | O16: =IFERROR(IF(O15="","",O15+B16),"") -> 0
A17: 11.20 mm | B17: 0 | F17: 40 - 60 | G17: 40 | H17: 60 | I17: 50 | J17: 20 | K17: 45 | L17: 60 | M17: FALSE | N17: TRUE | O17: 0
A18: 4.75 mm | B18: 0 | F18: 25 - 40 | G18: 25 | H18: 40 | I18: 32.5 | J18: 15 | K18: 64 | L18: 75 | M18: FALSE | N18: TRUE | O18: 0
A19: 2.36 mm | B19: 0 | F19: 15 - 30 | G19: 15 | H19: 30 | I19: 22.5 | J19: 15 | K19: 74 | L19: 85 | M19: FALSE | N19: TRUE | O19: 0
A20: 600 µ | B20: 0 | F20: 8 - 22 | G20: 8 | H20: 22 | I20: 15 | J20: 14 | K20: 81 | L20: 92 | M20: FALSE | N20: TRUE | O20: 0
A21: 75 µ | B21: 0 | F21: 0 - 5 | G21: 0 | H21: 5 | I21: 2.5 | J21: 5 | K21: 96 | L21: 100 | M21: FALSE | N21: TRUE | O21: 0
A22: PAN | B22: =$F$10-SUM(B14:B21) -> 0 | M22: =AND(M14:M21) -> FALSE | N22: =AND(N14:N21) -> TRUE
A24: Whether conforms to prescribed limits | F24: =IF(AND(M22,N22),"Yes","No") -> No

Sheet Format-Gradation-WMM (hidden)
L1: c
A2: Test for Wet Mix Macadam
A3: Sieve Analysis (Gradation) of Aggregate (IS:2386 Part I)
A4: WMM [Sieve Range 45 mm to 600 micron]
A5: =Work_Name -> 0
A6: =Program -> 0 | C6: =Work_ID -> 0
A7: Section Details | B7: Chainage* | C7: Location | F7: Date of Testing*
E10: Weight of Sample Taken [gm]*
A12: I.S. Sieve Designation | B12: Weight of Sample Retained (Kg) | C12: % of Weight Retained (%) | D12: Cumulative % of Weight Retained (%) | E12: % of Weight Passing | F12: Permissible Values (% by weight passing the sieve) | G12: Permissible Values (% passing IS sieve by weight) | K12: Minimum Retention | L12: Maximum Retention | M12: Range Validation | N12: Weight Validation | O12: Cumulative Weight of Sample Retained (Kg)
G13: Minimum | H13: Maximum | I13: Average | J13: Range
A14: 53 mm | F14: 100 | G14: 100 | H14: 100 | I14: =(G14+H14)/2 -> 100 | J14: =H14-G14 -> 0 | K14: =100-ROUND(I14+J14/4,0) -> 0 | L14: =100-G14 -> 0 | M14: =AND(E14>=G14,E14<=H14) -> FALSE | N14: =IFERROR((B14>=0),FALSE) -> TRUE | O14: =IF(B14="","",B14) -> 
A15: 45 mm | F15: =G15&" - "&H15 -> 95 - 100 | G15: 95 | H15: 100 | I15: =(G15+H15)/2 -> 97.5 | J15: =H15-G15 -> 5 | K15: =100-ROUND(I15+J15/4,0) -> 1 | L15: =100-G15 -> 5 | M15: =AND(E15>=G15,E15<=H15) -> FALSE | N15: TRUE | O15: =IFERROR(IF(O14="","",O14+B15),"") -> 
A16: 22.40 mm | F16: =G16&" - "&H16 -> 60 - 80 | G16: 60 | H16: 80 | I16: 70 | J16: 20 | K16: 25 | L16: 40 | M16: FALSE | N16: TRUE | O16: =IFERROR(IF(O15="","",O15+B16),"") -> 
A17: 11.20 mm | F17: 40 - 60 | G17: 40 | H17: 60 | I17: 50 | J17: 20 | K17: 45 | L17: 60 | M17: FALSE | N17: TRUE
A18: 4.75 mm | F18: 25 - 40 | G18: 25 | H18: 40 | I18: 32.5 | J18: 15 | K18: 64 | L18: 75 | M18: FALSE | N18: TRUE
A19: 2.36 mm | F19: 15 - 30 | G19: 15 | H19: 30 | I19: 22.5 | J19: 15 | K19: 74 | L19: 85 | M19: FALSE | N19: TRUE
A20: 600 µ | F20: 8 - 22 | G20: 8 | H20: 22 | I20: 15 | J20: 14 | K20: 81 | L20: 92 | M20: FALSE | N20: TRUE
A21: 75 µ | F21: 0 - 5 | G21: 0 | H21: 5 | I21: 2.5 | J21: 5 | K21: 96 | L21: 100 | M21: TRUE | N21: TRUE
A22: PAN | M22: =AND(M14:M21) -> FALSE | N22: =AND(N14:N21) -> TRUE
A24: Whether conforms to prescribed limits

Sheet Gradation-GSB-Gr I (hidden)
L1: c | P1: =AND(B8<>"",Result_Valid="Yes") -> FALSE
A3: Sieve Analysis (Gradation) of Aggregate (IS:2386 Part I)
A4: GSB - Gr I [Sieve Range 26.5 mm to 4.75 mm]
A5: =Work_Name -> 0
A6: =Program -> 0 | C6: =Work_ID -> 0
A7: Section Details | B7: Chainage* | C7: Location | F7: Date of Testing*
F8: =Test_Date -> 00:00:00
E10: Weight of Sample Taken [gm] | F10: =ROUND((RANDBETWEEN(95,105)/100)*Gradation_Sample_Weight,0) -> 0
A12: I.S. Sieve Designation | B12: Weight of Sample Retained (Kg) | C12: % of Weight Retained (%) | D12: Cumulative % of Weight Retained (%) | E12: % of Weight Passing | F12: Permissible Values (% by weight passing the sieve) | G12: Permissible Values (% passing IS sieve by weight) | K12: Random % Retention Range | M12: Range Validation | N12: Weight Validation | O12: Cumulative Weight of Sample Retained (Kg)
G13: Minimum | H13: Maximum | I13: Average | J13: Range | K13: Minimum | L13: Maximum
A14: 53 mm | B14: 0 | C14: =IFERROR($B14*100/$F$10,"") ->  | D14: =C14 ->  | E14: =IFERROR((100-D14),"") ->  | F14: 100 | G14: 100 | H14: 100 | I14: =(G14+H14)/2 -> 100 | J14: =H14-G14 -> 0 | K14: =100-ROUND(I14+J14/4,0) -> 0 | L14: =100-G14 -> 0 | M14: =AND(E14>=G14,E14<=H14) -> FALSE | N14: =IFERROR((B14>=0),FALSE) -> TRUE | O14: =IF(B14="","",B14) -> 0
A15: 26.50 mm | B15: =IFERROR(ROUND((RANDBETWEEN($F$10*K15,$F$10*L15)/100),0)-O14,"") -> 0 | C15: =IFERROR(ROUND($B15*100/$F$10,2),"") ->  | D15: =IFERROR(D14+C15,"") ->  | E15: =IFERROR((100-D15),"") ->  | F15: =G15&" - "&H15 -> 55 - 75 | G15: 55 | H15: 75 | I15: =(G15+H15)/2 -> 65 | J15: =H15-G15 -> 20 | K15: =100-ROUND(I15+J15/4,0) -> 30 | L15: =100-G15 -> 45 | M15: =AND(E15>=G15,E15<=H15) -> FALSE | N15: TRUE | O15: =IFERROR(IF(O14="","",O14+B15),"") -> 0
A16: 4.75 mm | B16: =IFERROR(ROUND((RANDBETWEEN($F$10*K16,$F$10*L16)/100),0)-O15,"") -> 0 | D16: =IFERROR(D15+C16,"") ->  | F16: =G16&" - "&H16 -> 10 - 30 | G16: 10 | H16: 30 | I16: 20 | J16: 20 | K16: 75 | L16: 90 | M16: FALSE | N16: TRUE | O16: =IFERROR(IF(O15="","",O15+B16),"") -> 0
A17: 75 µ | B17: 0 | F17: 0 - 15 | G17: 0 | H17: 15 | I17: 7.5 | J17: 15 | K17: 89 | L17: 100 | M17: FALSE | N17: TRUE | O17: 0
A18: PAN | B18: =$F$10-SUM(B14:B17) -> 0 | M18: =AND(M14:M17) -> FALSE | N18: =AND(N14:N17) -> TRUE
A20: Whether conforms to prescribed limits | F20: =IF(AND(M18,N18),"Yes","No") -> No

Sheet Format-Gradation-GSB-Gr I (hidden)
L1: c
A2: Test for Granular Subbase - Gr I
A3: Sieve Analysis (Gradation) of Aggregate (IS:2386 Part I)
A4: GSB - Gr I [Sieve Range 26.5 mm to 4.75 mm]
A5: =Work_Name -> 0
A6: =Program -> 0 | C6: =Work_ID -> 0
A7: Section Details | B7: Chainage* | C7: Location | F7: Date of Testing*
E10: Weight of Sample Taken [gm]
A12: I.S. Sieve Designation | B12: Weight of Sample Retained (Kg) | C12: % of Weight Retained (%) | D12: Cumulative % of Weight Retained (%) | E12: % of Weight Passing | F12: Permissible Values (% by weight passing the sieve) | G12: Permissible Values (% passing IS sieve by weight) | K12: Random % Retention Range | M12: Range Validation | N12: Weight Validation | O12: Cumulative Weight of Sample Retained (Kg)
G13: Minimum | H13: Maximum | I13: Average | J13: Range | K13: Minimum | L13: Maximum
A14: 53 mm | F14: 100 | G14: 100 | H14: 100 | I14: =(G14+H14)/2 -> 100 | J14: =H14-G14 -> 0 | K14: =100-ROUND(I14+J14/4,0) -> 0 | L14: =100-G14 -> 0 | M14: =AND(E14>=G14,E14<=H14) -> FALSE | N14: =IFERROR((B14>=0),FALSE) -> TRUE | O14: =IF(B14="","",B14) -> 
A15: 26.50 mm | F15: =G15&" - "&H15 -> 55 - 75 | G15: 55 | H15: 75 | I15: =(G15+H15)/2 -> 65 | J15: =H15-G15 -> 20 | K15: =100-ROUND(I15+J15/4,0) -> 30 | L15: =100-G15 -> 45 | M15: =AND(E15>=G15,E15<=H15) -> FALSE | N15: TRUE | O15: =IFERROR(IF(O14="","",O14+B15),"") -> 
A16: 4.75 mm | F16: =G16&" - "&H16 -> 10 - 30 | G16: 10 | H16: 30 | I16: 20 | J16: 20 | K16: 75 | L16: 90 | M16: FALSE | N16: TRUE | O16: =IFERROR(IF(O15="","",O15+B16),"") -> 
A17: 75 µ | F17: 0 - 15 | G17: 0 | H17: 15 | I17: 7.5 | J17: 15 | K17: 89 | L17: 100 | M17: TRUE | N17: TRUE
A18: PAN | M18: =AND(M14:M17) -> FALSE | N18: =AND(N14:N17) -> TRUE
A20: Whether conforms to prescribed limits

Sheet Gradation-GSB-Gr II (hidden)
L1: c | P1: =AND(B8<>"",Result_Valid="Yes") -> FALSE
A2: Test for Granular Sub Base - Gr II
A3: Sieve Analysis (Gradation) of Aggregate (IS:2386 Part I)
A4: GSB - Gr II [Sieve Range 26.5 mm to 4.75 mm]
A5: =Work_Name -> 0
A6: =Program -> 0 | C6: =Work_ID -> 0
A7: Section Details | B7: Chainage* | C7: Location | F7: Date of Testing*
F8: =Test_Date -> 00:00:00
E10: Weight of Sample Taken [gm] | F10: =ROUND((RANDBETWEEN(95,105)/100)*Gradation_Sample_Weight,0) -> 0
A12: I.S. Sieve Designation | B12: Weight of Sample Retained (Kg) | C12: % of Weight Retained (%) | D12: Cumulative % of Weight Retained (%) | E12: % of Weight Passing | F12: Permissible Values (% by weight passing the sieve) | G12: Permissible Values (% passing IS sieve by weight) | K12: Random % Retention Range | M12: Range Validation | N12: Weight Validation | O12: Cumulative Weight of Sample Retained (Kg)
G13: Minimum | H13: Maximum | I13: Average | J13: Range | K13: Minimum | L13: Maximum
A14: 53 mm | B14: 0 | C14: =IFERROR($B14*100/$F$10,"") ->  | D14: =C14 ->  | E14: =IFERROR((100-D14),"") ->  | F14: 100 | G14: 100 | H14: 100 | I14: =(G14+H14)/2 -> 100 | J14: =H14-G14 -> 0 | K14: =100-ROUND(I14+J14/4,0) -> 0 | L14: =100-G14 -> 0 | M14: =AND(E14>=G14,E14<=H14) -> FALSE | N14: =IFERROR((B14>=0),FALSE) -> TRUE | O14: =IF(B14="","",B14) -> 0
A15: 26.50 mm | B15: =IFERROR(ROUND((RANDBETWEEN($F$10*K15,$F$10*L15)/100),0)-O14,"") -> 0 | C15: =IFERROR(ROUND($B15*100/$F$10,2),"") ->  | D15: =IFERROR(D14+C15,"") ->  | E15: =IFERROR((100-D15),"") ->  | F15: =G15&" - "&H15 -> 50 - 80 | G15: 50 | H15: 80 | I15: =(G15+H15)/2 -> 65 | J15: =H15-G15 -> 30 | K15: =100-ROUND(I15+J15/4,0) -> 27 | L15: =100-G15 -> 50 | M15: =AND(E15>=G15,E15<=H15) -> FALSE | N15: TRUE | O15: =IFERROR(IF(O14="","",O14+B15),"") -> 0
A16: 4.75 mm | B16: =IFERROR(ROUND((RANDBETWEEN($F$10*K16,$F$10*L16)/100),0)-O15,"") -> 0 | D16: =IFERROR(D15+C16,"") ->  | E16: =IFERROR((100-D16),"") ->  | F16: =G16&" - "&H16 -> 15 - 35 | G16: 15 | H16: 35 | I16: 25 | J16: 20 | K16: 70 | L16: 85 | M16: FALSE | N16: =IFERROR((B16>=0),FALSE) -> TRUE | O16: =IFERROR(IF(O15="","",O15+B16),"") -> 0
A17: 75 µ | B17: 0 | F17: 0 - 15 | G17: 0 | H17: 15 | I17: 7.5 | J17: 15 | K17: 89 | L17: 100 | M17: FALSE | N17: TRUE | O17: 0
A18: PAN | B18: =$F$10-SUM(B14:B17) -> 0 | M18: =AND(M14:M17) -> FALSE | N18: =AND(N14:N17) -> TRUE
A20: Whether conforms to prescribed limits | F20: =IF(AND(M18,N18),"Yes","No") -> No

Sheet Format-Gradation-GSB-Gr II (hidden)
L1: c
A2: Test for Granular Sub Base - Gr II
A3: Sieve Analysis (Gradation) of Aggregate (IS:2386 Part I)
A4: GSB - Gr II [Sieve Range 26.5 mm to 4.75 mm]
A5: =Work_Name -> 0
A6: =Program -> 0 | C6: =Work_ID -> 0
A7: Section Details | B7: Chainage* | C7: Location | F7: Date of Testing*
E10: Weight of Sample Taken [gm]
A12: I.S. Sieve Designation | B12: Weight of Sample Retained (Kg) | C12: % of Weight Retained (%) | D12: Cumulative % of Weight Retained (%) | E12: % of Weight Passing | F12: Permissible Values (% by weight passing the sieve) | G12: Permissible Values (% passing IS sieve by weight) | K12: Random % Retention Range | M12: Range Validation | N12: Weight Validation | O12: Cumulative Weight of Sample Retained (Kg)
G13: Minimum | H13: Maximum | I13: Average | J13: Range | K13: Minimum | L13: Maximum
A14: 53 mm | F14: 100 | G14: 100 | H14: 100 | I14: =(G14+H14)/2 -> 100 | J14: =H14-G14 -> 0 | K14: =100-ROUND(I14+J14/4,0) -> 0 | L14: =100-G14 -> 0 | M14: =AND(E14>=G14,E14<=H14) -> FALSE | N14: =IFERROR((B14>=0),FALSE) -> TRUE | O14: =IF(B14="","",B14) -> 
A15: 26.50 mm | F15: =G15&" - "&H15 -> 50 - 80 | G15: 50 | H15: 80 | I15: =(G15+H15)/2 -> 65 | J15: =H15-G15 -> 30 | K15: =100-ROUND(I15+J15/4,0) -> 27 | L15: =100-G15 -> 50 | M15: =AND(E15>=G15,E15<=H15) -> FALSE | N15: TRUE | O15: =IFERROR(IF(O14="","",O14+B15),"") -> 
A16: 4.75 mm | F16: =G16&" - "&H16 -> 15 - 35 | G16: 15 | H16: 35 | I16: 25 | J16: 20 | K16: 70 | L16: 85 | M16: FALSE | N16: TRUE | O16: =IFERROR(IF(O15="","",O15+B16),"") -> 
A17: 75 µ | F17: 0 - 15 | G17: 0 | H17: 15 | I17: 7.5 | J17: 15 | K17: 89 | L17: 100 | M17: TRUE | N17: TRUE
A18: PAN | M18: =AND(M14:M17) -> FALSE | N18: =AND(N14:N17) -> TRUE
A20: Whether conforms to prescribed limits

Sheet Gradation-GSB-Gr III (hidden)
L1: c | P1: =AND(B8<>"",Result_Valid="Yes") -> FALSE
A3: Sieve Analysis (Gradation) of Aggregate (IS:2386 Part I)
A4: GSB - Gr III [Sieve Range 26.5 mm to 4.75 mm]
A5: =Work_Name -> 0
A6: =Program -> 0 | C6: =Work_ID -> 0
A7: Section Details | B7: Chainage* | C7: Location | F7: Date of Testing*
F8: =Test_Date -> 00:00:00
E10: Weight of Sample Taken [gm] | F10: =ROUND((RANDBETWEEN(95,105)/100)*Gradation_Sample_Weight,0) -> 0
A12: I.S. Sieve Designation | B12: Weight of Sample Retained (Kg) | C12: % of Weight Retained (%) | D12: Cumulative % of Weight Retained (%) | E12: % of Weight Passing | F12: Permissible Values (% by weight passing the sieve) | G12: Permissible Values (% passing IS sieve by weight) | K12: Random % Retention Range | M12: Range Validation | N12: Weight Validation | O12: Cumulative Weight of Sample Retained (Kg)
G13: Minimum | H13: Maximum | I13: Average | J13: Range | K13: Minimum | L13: Maximum
A14: 26.5 mm | B14: 0 | C14: =IFERROR($B14*100/$F$10,"") ->  | D14: =C14 ->  | E14: =IFERROR((100-D14),"") ->  | F14: 100 | G14: 100 | H14: 100 | I14: =(G14+H14)/2 -> 100 | J14: =H14-G14 -> 0 | K14: =100-ROUND(I14+J14/4,0) -> 0 | L14: =100-G14 -> 0 | M14: =AND(E14>=G14,E14<=H14) -> FALSE | N14: =IFERROR((B14>=0),FALSE) -> TRUE | O14: =IF(B14="","",B14) -> 0
A15: 4.75 mm | B15: =IFERROR(ROUND((RANDBETWEEN($F$10*K15,$F$10*L15)/100),0)-O14,"") -> 0 | C15: =IFERROR(ROUND($B15*100/$F$10,2),"") ->  | D15: =IFERROR(D14+C15,"") ->  | E15: =IFERROR((100-D15),"") ->  | F15: =G15&" - "&H15 -> 25 - 45 | G15: 25 | H15: 45 | I15: =(G15+H15)/2 -> 35 | J15: =H15-G15 -> 20 | K15: =100-ROUND(I15+J15/4,0) -> 60 | L15: =100-G15 -> 75 | M15: =AND(E15>=G15,E15<=H15) -> FALSE | N15: TRUE | O15: =IFERROR(IF(O14="","",O14+B15),"") -> 0
A16: 75 µ | B16: =IFERROR(ROUND((RANDBETWEEN($F$10*K16,$F$10*L16)/100),0)-O15,"") -> 0 | D16: =IFERROR(D15+C16,"") ->  | F16: =G16&" - "&H16 -> 0 - 15 | G16: 0 | H16: 15 | I16: 7.5 | J16: 15 | K16: 89 | L16: 100 | M16: FALSE | N16: TRUE | O16: =IFERROR(IF(O15="","",O15+B16),"") -> 0
A17: PAN | B17: =$F$10-SUM(B14:B16) -> 0 | M17: =AND(M14:M16) -> FALSE | N17: =AND(N14:N16) -> TRUE
A19: Whether conforms to prescribed limits | F19: =IF(AND(M17,N17),"Yes","No") -> No

Sheet Format-Gradation-GSB-Gr III (hidden)
L1: c
A2: Test for Granular Subbase - Gr III
A3: Sieve Analysis (Gradation) of Aggregate (IS:2386 Part I)
A4: GSB - Gr III [Sieve Range 26.5 mm to 4.75 mm]
A5: =Work_Name -> 0
A6: =Program -> 0 | C6: =Work_ID -> 0
A7: Section Details | B7: Chainage* | C7: Location | F7: Date of Testing*
E10: Weight of Sample Taken [gm]
A12: I.S. Sieve Designation | B12: Weight of Sample Retained (Kg) | C12: % of Weight Retained (%) | D12: Cumulative % of Weight Retained (%) | E12: % of Weight Passing | F12: Permissible Values (% by weight passing the sieve) | G12: Permissible Values (% passing IS sieve by weight) | K12: Random % Retention Range | M12: Range Validation | N12: Weight Validation | O12: Cumulative Weight of Sample Retained (Kg)
G13: Minimum | H13: Maximum | I13: Average | J13: Range | K13: Minimum | L13: Maximum
A14: 26.5 mm | F14: 100 | G14: 100 | H14: 100 | I14: =(G14+H14)/2 -> 100 | J14: =H14-G14 -> 0 | K14: =100-ROUND(I14+J14/4,0) -> 0 | L14: =100-G14 -> 0 | M14: =AND(E14>=G14,E14<=H14) -> FALSE | N14: =IFERROR((B14>=0),FALSE) -> TRUE | O14: =IF(B14="","",B14) -> 
A15: 4.75 mm | F15: =G15&" - "&H15 -> 25 - 45 | G15: 25 | H15: 45 | I15: =(G15+H15)/2 -> 35 | J15: =H15-G15 -> 20 | K15: =100-ROUND(I15+J15/4,0) -> 60 | L15: =100-G15 -> 75 | M15: =AND(E15>=G15,E15<=H15) -> FALSE | N15: TRUE | O15: =IFERROR(IF(O14="","",O14+B15),"") -> 
A16: 75 µ | F16: =G16&" - "&H16 -> 0 - 15 | G16: 0 | H16: 15 | I16: 7.5 | J16: 15 | K16: 89 | L16: 100 | M16: TRUE | N16: TRUE | O16: =IFERROR(IF(O15="","",O15+B16),"") -> 
A17: PAN | M17: =AND(M14:M16) -> FALSE | N17: =AND(N14:N16) -> TRUE
A19: Whether conforms to prescribed limits

Sheet Gradation-WBM-Gr I (hidden)
L1: c | P1: =AND(B8<>"",Result_Valid="Yes") -> FALSE
A2: Test for Water Bound Macadam - Gr I
A3: Sieve Analysis (Gradation) of Aggregate (IS:2386 Part I)
A4: WBM - Gr I [Sieve Range 90 mm to 45 mm]
A5: =Work_Name -> 0
A6: =Program -> 0 | C6: =Work_ID -> 0
A7: Section Details | B7: Chainage* | C7: Location | F7: Date of Testing*
F8: =Test_Date -> 00:00:00
E10: Weight of Sample Taken [gm] | F10: =ROUND((RANDBETWEEN(95,105)/100)*Gradation_Sample_Weight,0) -> 0
A12: I.S. Sieve Designation | B12: Weight of Sample Retained (Kg) | C12: % of Weight Retained (%) | D12: Cumulative % of Weight Retained (%) | E12: % of Weight Passing | F12: Permissible Values (% by weight passing the sieve) | G12: Permissible Values (% passing IS sieve by weight) | K12: Random % Retention Range | M12: Range Validation | N12: Weight Validation | O12: Cumulative Weight of Sample Retained (Kg)
G13: Minimum | H13: Maximum | I13: Average | J13: Range | K13: Minimum | L13: Maximum
A14: 125 mm | B14: 0 | C14: =IFERROR($B14*100/$F$10,"") ->  | D14: =C14 ->  | E14: =IFERROR((100-D14),"") ->  | F14: 100 | G14: 100 | H14: 100 | I14: =(G14+H14)/2 -> 100 | J14: =H14-G14 -> 0 | K14: =100-ROUND(I14+J14/4,0) -> 0 | L14: =100-G14 -> 0 | M14: =AND(E14>=G14,E14<=H14) -> FALSE | N14: =IFERROR((B14>=0),FALSE) -> TRUE | O14: =IF(B14="","",B14) -> 0
A15: 90 mm | B15: =IFERROR(ROUND((RANDBETWEEN($F$10*K15,$F$10*L15)/100),0)-O14,"") -> 0 | C15: =IFERROR(ROUND($B15*100/$F$10,2),"") ->  | D15: =IFERROR(D14+C15,"") ->  | E15: =IFERROR((100-D15),"") ->  | F15: =G15&" - "&H15 -> 90 - 100 | G15: 90 | H15: 100 | I15: =(G15+H15)/2 -> 95 | J15: =H15-G15 -> 10 | K15: =100-ROUND(I15+J15/4,0) -> 2 | L15: =100-G15 -> 10 | M15: =AND(E15>=G15,E15<=H15) -> FALSE | N15: TRUE | O15: =IFERROR(IF(O14="","",O14+B15),"") -> 0
A16: 63 mm | B16: =IFERROR(ROUND((RANDBETWEEN($F$10*K16,$F$10*L16)/100),0)-O15,"") -> 0 | D16: =IFERROR(D15+C16,"") ->  | F16: =G16&" - "&H16 -> 25 - 60 | G16: 25 | H16: 60 | I16: 42.5 | J16: 35 | K16: 49 | L16: 75 | M16: FALSE | N16: TRUE | O16: =IFERROR(IF(O15="","",O15+B16),"") -> 0
A17: 45 mm | B17: 0 | F17: 0 - 15 | G17: 0 | H17: 15 | I17: 7.5 | J17: 15 | K17: 89 | L17: 100 | M17: FALSE | N17: TRUE | O17: 0
A18: 22.4 mm | B18: 0 | F18: 0 - 5 | G18: 0 | H18: 5 | I18: 2.5 | J18: 5 | K18: 96 | L18: 100 | M18: FALSE | N18: TRUE | O18: 0
A19: PAN | B19: =$F$10-SUM(B14:B18) -> 0 | M19: =AND(M14:M18) -> FALSE | N19: =AND(N14:N18) -> TRUE
A21: Whether conforms to prescribed limits | F21: =IF(AND(M19,N19),"Yes","No") -> No

Sheet Format-Gradation-WBM-Gr I (hidden)
L1: c
A2: Test for Water Bound Macadam - Gr I
A3: Sieve Analysis (Gradation) of Aggregate (IS:2386 Part I)
A4: WBM - Gr I [Sieve Range 90 mm to 45 mm]
A5: =Work_Name -> 0
A6: =Program -> 0 | C6: =Work_ID -> 0
A7: Section Details | B7: Chainage* | C7: Location | F7: Date of Testing*
E10: Weight of Sample Taken [gm]
A12: I.S. Sieve Designation | B12: Weight of Sample Retained (Kg) | C12: % of Weight Retained (%) | D12: Cumulative % of Weight Retained (%) | E12: % of Weight Passing | F12: Permissible Values (% by weight passing the sieve) | G12: Permissible Values (% passing IS sieve by weight) | K12: Random % Retention Range | M12: Range Validation | N12: Weight Validation | O12: Cumulative Weight of Sample Retained (Kg)
G13: Minimum | H13: Maximum | I13: Average | J13: Range | K13: Minimum | L13: Maximum
A14: 125 mm | F14: 100 | G14: 100 | H14: 100 | I14: =(G14+H14)/2 -> 100 | J14: =H14-G14 -> 0 | K14: =100-ROUND(I14+J14/4,0) -> 0 | L14: =100-G14 -> 0 | M14: =AND(E14>=G14,E14<=H14) -> FALSE | N14: =IFERROR((B14>=0),FALSE) -> TRUE | O14: =IF(B14="","",B14) -> 
A15: 90 mm | F15: =G15&" - "&H15 -> 90 - 100 | G15: 90 | H15: 100 | I15: =(G15+H15)/2 -> 95 | J15: =H15-G15 -> 10 | K15: =100-ROUND(I15+J15/4,0) -> 2 | L15: =100-G15 -> 10 | M15: =AND(E15>=G15,E15<=H15) -> FALSE | N15: TRUE | O15: =IFERROR(IF(O14="","",O14+B15),"") -> 
A16: 63 mm | F16: =G16&" - "&H16 -> 25 - 60 | G16: 25 | H16: 60 | I16: 42.5 | J16: 35 | K16: 49 | L16: 75 | M16: FALSE | N16: TRUE | O16: =IFERROR(IF(O15="","",O15+B16),"") -> 
A17: 45 mm | F17: 0 - 15 | G17: 0 | H17: 15 | I17: 7.5 | J17: 15 | K17: 89 | L17: 100 | M17: TRUE | N17: TRUE
A18: 22.4 mm | F18: 0 - 5 | G18: 0 | H18: 5 | I18: 2.5 | J18: 5 | K18: 96 | L18: 100 | M18: TRUE | N18: TRUE
A19: PAN | M19: =AND(M14:M18) -> FALSE | N19: =AND(N14:N18) -> TRUE
A21: Whether conforms to prescribed limits

Sheet Gradation-WBM-Gr II (hidden)
L1: c | P1: =AND(B8<>"",Result_Valid="Yes") -> FALSE
A2: Test for Water Bound Macadam - Gr II
A3: Sieve Analysis (Gradation) of Aggregate (IS:2386 Part I)
A4: WBM - Gr II [Sieve Range 63 mm to 45 mm]
A5: =Work_Name -> 0
A6: =Program -> 0 | C6: =Work_ID -> 0
A7: Section Details | B7: Chainage* | C7: Location | F7: Date of Testing*
F8: =Test_Date -> 00:00:00
E10: Weight of Sample Taken [gm] | F10: =ROUND((RANDBETWEEN(95,105)/100)*Gradation_Sample_Weight,0) -> 0
A12: I.S. Sieve Designation | B12: Weight of Sample Retained (Kg) | C12: % of Weight Retained (%) | D12: Cumulative % of Weight Retained (%) | E12: % of Weight Passing | F12: Permissible Values (% by weight passing the sieve) | G12: Permissible Values (% passing IS sieve by weight) | K12: Random % Retention | M12: Range Validation | N12: Weight Validation | O12: Cumulative Weight of Sample Retained (Kg)
G13: Minimum | H13: Maximum | I13: Average | J13: Range | K13: Minimum | L13: Maximum
A14: 90 mm | B14: 0 | C14: =IFERROR($B14*100/$F$10,"") ->  | D14: =C14 ->  | E14: =IFERROR((100-D14),"") ->  | F14: 100 | G14: 100 | H14: 100 | I14: =(G14+H14)/2 -> 100 | J14: =H14-G14 -> 0 | K14: =100-ROUND(I14+J14/4,0) -> 0 | L14: =100-G14 -> 0 | M14: =AND(E14>=G14,E14<=H14) -> FALSE | N14: =IFERROR((B14>=0),FALSE) -> TRUE | O14: =IF(B14="","",B14) -> 0
A15: 63 mm | B15: =IFERROR(ROUND((RANDBETWEEN($F$10*K15,$F$10*L15)/100),0)-O14,"") -> 0 | C15: =IFERROR(ROUND($B15*100/$F$10,2),"") ->  | D15: =IFERROR(D14+C15,"") ->  | E15: =IFERROR((100-D15),"") ->  | F15: =G15&" - "&H15 -> 90 - 100 | G15: 90 | H15: 100 | I15: =(G15+H15)/2 -> 95 | J15: =H15-G15 -> 10 | K15: =100-ROUND(I15+J15/4,0) -> 2 | L15: =100-G15 -> 10 | M15: =AND(E15>=G15,E15<=H15) -> FALSE | N15: =IFERROR((B15>=0),FALSE) -> TRUE | O15: =IFERROR(IF(O14="","",O14+B15),"") -> 0
A16: 53 mm | B16: =IFERROR(ROUND((RANDBETWEEN($F$10*K16,$F$10*L16)/100),0)-O15,"") -> 0 | D16: =IFERROR(D15+C16,"") ->  | F16: =G16&" - "&H16 -> 25 - 75 | G16: 25 | H16: 75 | I16: 50 | J16: 50 | K16: 37 | L16: 75 | M16: FALSE | N16: =IFERROR((B16>=0),FALSE) -> TRUE | O16: =IFERROR(IF(O15="","",O15+B16),"") -> 0
A17: 45 mm | B17: 0 | F17: 0 - 15 | G17: 0 | H17: 15 | I17: 7.5 | J17: 15 | K17: 89 | L17: 100 | M17: FALSE | N17: TRUE | O17: 0
A18: 22.4 mm | B18: 0 | F18: 0 - 5 | G18: 0 | H18: 5 | I18: 2.5 | J18: 5 | K18: 96 | L18: 100 | M18: FALSE | N18: TRUE | O18: 0
A19: PAN | B19: =$F$10-SUM(B14:B18) -> 0 | M19: =AND(M14:M18) -> FALSE | N19: =AND(N14:N18) -> TRUE
A21: Whether conforms to prescribed limits | F21: =IF(AND(M19,N19),"Yes","No") -> No

Sheet Format-Gradation-WBM-Gr II (hidden)
L1: c
A2: Test for Water Bound Macadam - Gr II
A3: Sieve Analysis (Gradation) of Aggregate (IS:2386 Part I)
A4: WBM - Gr II [Sieve Range 63 mm to 45 mm]
A5: =Work_Name -> 0
A6: =Program -> 0 | C6: =Work_ID -> 0
A7: Section Details | B7: Chainage* | C7: Location | F7: Date of Testing*
E10: Weight of Sample Taken [gm]
A12: I.S. Sieve Designation | B12: Weight of Sample Retained (Kg) | C12: % of Weight Retained (%) | D12: Cumulative % of Weight Retained (%) | E12: % of Weight Passing | F12: Permissible Values (% by weight passing the sieve) | G12: Permissible Values (% passing IS sieve by weight) | K12: Random % Retention | M12: Range Validation | N12: Weight Validation | O12: Cumulative Weight of Sample Retained (Kg)
G13: Minimum | H13: Maximum | I13: Average | J13: Range | K13: Minimum | L13: Maximum
A14: 90 mm | G14: 100 | H14: 100 | I14: =(G14+H14)/2 -> 100 | J14: =H14-G14 -> 0 | K14: =100-ROUND(I14+J14/4,0) -> 0 | L14: =100-G14 -> 0 | M14: =AND(E14>=G14,E14<=H14) -> FALSE | N14: =IFERROR((B14>=0),FALSE) -> TRUE | O14: =IF(B14="","",B14) -> 
A15: 63 mm | G15: 90 | H15: 100 | I15: =(G15+H15)/2 -> 95 | J15: =H15-G15 -> 10 | K15: =100-ROUND(I15+J15/4,0) -> 2 | L15: =100-G15 -> 10 | M15: =AND(E15>=G15,E15<=H15) -> FALSE | N15: =IFERROR((B15>=0),FALSE) -> TRUE | O15: =IFERROR(IF(O14="","",O14+B15),"") -> 
A16: 53 mm | G16: 25 | H16: 75 | I16: 50 | J16: 50 | K16: 37 | L16: 75 | M16: FALSE | N16: =IFERROR((B16>=0),FALSE) -> TRUE | O16: =IFERROR(IF(O15="","",O15+B16),"") -> 
A17: 45 mm | G17: 0 | H17: 15 | I17: 7.5 | J17: 15 | K17: 89 | L17: 100 | M17: TRUE | N17: TRUE
A18: 22.4 mm | G18: 0 | H18: 5 | I18: 2.5 | J18: 5 | K18: 96 | L18: 100 | M18: TRUE | N18: TRUE
A19: PAN | M19: =AND(M14:M18) -> FALSE | N19: =AND(N14:N18) -> TRUE
A21: Whether conforms to prescribed limits

Sheet Gradation-WBM-Gr III (hidden)
L1: c | P1: =AND(B8<>"",Result_Valid="Yes") -> FALSE
A2: Test for Water Bound Macadam - Gr III
A3: Sieve Analysis (Gradation) of Aggregate (IS:2386 Part I)
A4: WBM - Gr III [Sieve Range 53 mm to 22.4 mm]
A5: =Work_Name -> 0
A6: =Program -> 0 | C6: =Work_ID -> 0
A7: Section Details | B7: Chainage* | C7: Location | F7: Date of Testing*
F8: =Test_Date -> 00:00:00
E10: Weight of Sample Taken [gm] | F10: =ROUND((RANDBETWEEN(95,105)/100)*Gradation_Sample_Weight,0) -> 0
A12: I.S. Sieve Designation | B12: Weight of Sample Retained (Kg) | C12: % of Weight Retained (%) | D12: Cumulative % of Weight Retained (%) | E12: % of Weight Passing | F12: Permissible Values (% by weight passing the sieve) | G12: Permissible Values (% passing IS sieve by weight) | K12: Random % Retention Range | M12: Range Validation | N12: Weight Validation | O12: Cumulative Weight of Sample Retained (Kg)
G13: Minimum | H13: Maximum | I13: Average | J13: Range | K13: Minimum | L13: Maximum
A14: 63 mm | B14: 0 | C14: =IFERROR($B14*100/$F$10,"") ->  | D14: =C14 ->  | E14: =IFERROR((100-D14),"") ->  | F14: 100 | G14: 100 | H14: 100 | I14: =(G14+H14)/2 -> 100 | J14: =H14-G14 -> 0 | K14: =100-ROUND(I14+J14/4,0) -> 0 | L14: =100-G14 -> 0 | M14: =AND(E14>=G14,E14<=H14) -> FALSE | N14: =IFERROR((B14>=0),FALSE) -> TRUE | O14: =IF(B14="","",B14) -> 0
A15: 53 mm | B15: =IFERROR(ROUND((RANDBETWEEN($F$10*K15,$F$10*L15)/100),0)-O14,"") -> 0 | C15: =IFERROR(ROUND($B15*100/$F$10,2),"") ->  | D15: =IFERROR(D14+C15,"") ->  | E15: =IFERROR((100-D15),"") ->  | F15: =G15&" - "&H15 -> 95 - 100 | G15: 95 | H15: 100 | I15: =(G15+H15)/2 -> 97.5 | J15: =H15-G15 -> 5 | K15: =100-ROUND(I15+J15/4,0) -> 1 | L15: =100-G15 -> 5 | M15: =AND(E15>=G15,E15<=H15) -> FALSE | N15: =IFERROR((B15>=0),FALSE) -> TRUE | O15: =IFERROR(IF(O14="","",O14+B15),"") -> 0
A16: 45 mm | B16: =IFERROR(ROUND((RANDBETWEEN($F$10*K16,$F$10*L16)/100),0)-O15,"") -> 0 | D16: =IFERROR(D15+C16,"") ->  | F16: =G16&" - "&H16 -> 65 - 90 | G16: 65 | H16: 90 | I16: 77.5 | J16: 25 | K16: 16 | L16: 35 | M16: FALSE | N16: TRUE | O16: =IFERROR(IF(O15="","",O15+B16),"") -> 0
A17: 22.4 mm | B17: 0 | F17: 0 - 10 | G17: 0 | H17: 10 | I17: 5 | J17: 10 | K17: 92 | L17: 100 | M17: FALSE | N17: TRUE | O17: 0
A18: 11.2 mm | B18: 0 | F18: 0 - 5 | G18: 0 | H18: 5 | I18: 2.5 | J18: 5 | K18: 96 | L18: 100 | M18: FALSE | N18: TRUE | O18: 0
A19: PAN | B19: =$F$10-SUM(B14:B18) -> 0 | M19: =AND(M14:M18) -> FALSE | N19: =AND(N14:N18) -> TRUE
A21: Whether conforms to prescribed limits | F21: =IF(AND(M19,N19),"Yes","No") -> No

Sheet Format-Gradation-WBM-Gr III (hidden)
L1: c
A2: Test for Water Bound Macadam - Gr III
A3: Sieve Analysis (Gradation) of Aggregate (IS:2386 Part I)
A4: WBM - Gr III [Sieve Range 53 mm to 22.4 mm]
A5: =Work_Name -> 0
A6: =Program -> 0 | C6: =Work_ID -> 0
A7: Section Details | B7: Chainage* | C7: Location | F7: Date of Testing*
E10: Weight of Sample Taken [gm]
A12: I.S. Sieve Designation | B12: Weight of Sample Retained (Kg) | C12: % of Weight Retained (%) | D12: Cumulative % of Weight Retained (%) | E12: % of Weight Passing | F12: Permissible Values (% by weight passing the sieve) | G12: Permissible Values (% passing IS sieve by weight) | K12: Random % Retention Range | M12: Range Validation | N12: Weight Validation | O12: Cumulative Weight of Sample Retained (Kg)
G13: Minimum | H13: Maximum | I13: Average | J13: Range | K13: Minimum | L13: Maximum
A14: 63 mm | F14: 100 | G14: 100 | H14: 100 | I14: =(G14+H14)/2 -> 100 | J14: =H14-G14 -> 0 | K14: =100-ROUND(I14+J14/4,0) -> 0 | L14: =100-G14 -> 0 | M14: =AND(E14>=G14,E14<=H14) -> FALSE | N14: =IFERROR((B14>=0),FALSE) -> TRUE | O14: =IF(B14="","",B14) -> 
A15: 53 mm | F15: =G15&" - "&H15 -> 95 - 100 | G15: 95 | H15: 100 | I15: =(G15+H15)/2 -> 97.5 | J15: =H15-G15 -> 5 | K15: =100-ROUND(I15+J15/4,0) -> 1 | L15: =100-G15 -> 5 | M15: =AND(E15>=G15,E15<=H15) -> FALSE | N15: =IFERROR((B15>=0),FALSE) -> TRUE | O15: =IFERROR(IF(O14="","",O14+B15),"") -> 
A16: 45 mm | F16: =G16&" - "&H16 -> 65 - 90 | G16: 65 | H16: 90 | I16: 77.5 | J16: 25 | K16: 16 | L16: 35 | M16: FALSE | N16: TRUE | O16: =IFERROR(IF(O15="","",O15+B16),"") -> 
A17: 22.4 mm | F17: 0 - 10 | G17: 0 | H17: 10 | I17: 5 | J17: 10 | K17: 92 | L17: 100 | M17: TRUE | N17: TRUE
A18: 11.2 mm | F18: 0 - 5 | G18: 0 | H18: 5 | I18: 2.5 | J18: 5 | K18: 96 | L18: 100 | M18: TRUE | N18: TRUE
A19: PAN | M19: =AND(M14:M18) -> FALSE | N19: =AND(N14:N18) -> TRUE
A21: Whether conforms to prescribed limits
